[Event "Early-Titled-Tuesday-Blitz-February-13-2024"]
[Site "Chess.com"]
[Date "2024.02.13"]
[Round "3"]
[White "masterofpuppets2"]
[Black "theoneandonlydaaevik"]
[Result "1/2-1/2"]
[WhiteElo "2435"]
[BlackElo "2277"]
[TimeControl "180+1"]
[EndTime "8:34:45 PST"]
[Termination "Game drawn by repetition"]

1. d4 {[%clk 0:03:00.9]} 1... Nf6 {[%clk 0:02:58.5]} 2. c4 {[%clk 0:03:00.7]}
2... e6 {[%clk 0:02:57.7]} 3. Nf3 {[%clk 0:03:00.8]} 3... d5 {[%clk 0:02:57.2]}
4. g3 {[%clk 0:03:01.1]} 4... Be7 {[%clk 0:02:56.7]} 5. Bg2 {[%clk 0:03:01.3]}
5... O-O {[%clk 0:02:57.4]} 6. O-O {[%clk 0:03:02]} 6... dxc4 {[%clk 0:02:58.2]}
7. Qc2 {[%clk 0:03:00.6]} 7... a6 {[%clk 0:02:55.6]} 8. a4 {[%clk 0:02:59.8]}
8... Bd7 {[%clk 0:02:56.3]} 9. Qxc4 {[%clk 0:02:59]} 9... Bc6 {[%clk 0:02:56.9]}
10. Bg5 {[%clk 0:02:59.1]} 10... Bd5 {[%clk 0:02:52.7]} 11. Qc1 {[%clk
0:02:56.7]} 11... h6 {[%clk 0:02:38]} 12. Bxf6 {[%clk 0:02:55.6]} 12... Bxf6
{[%clk 0:02:38.9]} 13. Nbd2 {[%clk 0:02:56.2]} 13... Bxf3 {[%clk 0:02:35.6]} 14.
Bxf3 {[%clk 0:02:56]} 14... c6 {[%clk 0:02:36.2]} 15. e3 {[%clk 0:02:56.4]}
15... a5 {[%clk 0:02:36.9]} 16. h4 {[%clk 0:02:49.9]} 16... Na6 {[%clk
0:02:34.9]} 17. Kg2 {[%clk 0:02:50.1]} 17... e5 {[%clk 0:02:29.5]} 18. dxe5
{[%clk 0:02:46.6]} 18... Bxe5 {[%clk 0:02:30.4]} 19. Nc4 {[%clk 0:02:47.1]}
19... Bc7 {[%clk 0:02:25.1]} 20. Rd1 {[%clk 0:02:46.8]} 20... Qe7 {[%clk
0:02:25]} 21. Qc3 {[%clk 0:02:44.7]} 21... Nb4 {[%clk 0:02:25.1]} 22. Rd4 {[%clk
0:02:39.1]} 22... Rad8 {[%clk 0:02:09]} 23. Rad1 {[%clk 0:02:35.2]} 23... Rxd4
{[%clk 0:02:05.1]} 24. Rxd4 {[%clk 0:02:36.1]} 24... Rd8 {[%clk 0:01:48.9]} 25.
Re4 {[%clk 0:02:35.5]} 25... Qf8 {[%clk 0:01:33]} 26. Be2 {[%clk 0:02:26.5]}
26... f5 {[%clk 0:01:06.8]} 27. Rd4 {[%clk 0:02:16.3]} 27... Rxd4 {[%clk
0:01:05.2]} 28. Qxd4 {[%clk 0:02:17.2]} 28... Nd5 {[%clk 0:00:39.3]} 29. Bf3
{[%clk 0:02:03.8]} 29... Nf6 {[%clk 0:00:26.8]} 30. Nd2 {[%clk 0:01:39.2]} 30...
Qb4 {[%clk 0:00:24.2]} 31. Qxb4 {[%clk 0:01:37.7]} 31... axb4 {[%clk 0:00:25.1]}
32. Nb3 {[%clk 0:01:38.5]} 32... Bb6 {[%clk 0:00:18.9]} 33. a5 {[%clk
0:01:25.8]} 33... Ba7 {[%clk 0:00:18.6]} 34. a6 {[%clk 0:01:26.5]} 34... bxa6
{[%clk 0:00:19.2]} 35. Bxc6 {[%clk 0:01:27]} 35... Bb6 {[%clk 0:00:19.5]} 36.
Kf3 {[%clk 0:01:21]} 36... g6 {[%clk 0:00:14.3]} 37. Ke2 {[%clk 0:01:20.8]}
37... Kf7 {[%clk 0:00:14.4]} 38. Kd3 {[%clk 0:01:18.9]} 38... Ng4 {[%clk
0:00:12.6]} 39. Ke2 {[%clk 0:01:15.9]} 39... Ne5 {[%clk 0:00:10.4]} 40. Bd5+
{[%clk 0:01:08.5]} 40... Kf6 {[%clk 0:00:10.7]} 41. f3 {[%clk 0:01:07.1]} 41...
g5 {[%clk 0:00:10.3]} 42. hxg5+ {[%clk 0:01:06.5]} 42... hxg5 {[%clk 0:00:11.2]}
43. e4 {[%clk 0:01:05.7]} 43... f4 {[%clk 0:00:10.1]} 44. gxf4 {[%clk
0:01:05.1]} 44... gxf4 {[%clk 0:00:11]} 45. Nd2 {[%clk 0:00:50.7]} 45... Kg5
{[%clk 0:00:08.3]} 46. Be6 {[%clk 0:00:40.8]} 46... Bd4 {[%clk 0:00:05.9]} 47.
b3 {[%clk 0:00:38.7]} 47... a5 {[%clk 0:00:06.3]} 48. Bc8 {[%clk 0:00:31.9]}
48... Kh4 {[%clk 0:00:05.4]} 49. Nf1 {[%clk 0:00:30.9]} 49... Kg5 {[%clk
0:00:04.7]} 50. Be6 {[%clk 0:00:30.2]} 50... Kf6 {[%clk 0:00:05.2]} 51. Bd5
{[%clk 0:00:29.6]} 51... Bc3 {[%clk 0:00:04.2]} 52. Nh2 {[%clk 0:00:25.5]} 52...
Kg5 {[%clk 0:00:04.3]} 53. Be6 {[%clk 0:00:25.4]} 53... Kh4 {[%clk 0:00:04]} 54.
Nf1 {[%clk 0:00:25]} 54... Kg5 {[%clk 0:00:02.5]} 55. Bc8 {[%clk 0:00:20.3]}
55... Kh4 {[%clk 0:00:02.6]} 56. Bf5 {[%clk 0:00:16.3]} 56... Kg5 {[%clk
0:00:03]} 57. Be6 {[%clk 0:00:16]} 57... Kh4 {[%clk 0:00:03.6]} 58. Bd5 {[%clk
0:00:14.8]} 58... Kg5 {[%clk 0:00:03.8]} 59. Bb7 {[%clk 0:00:14.5]} 59... Kh4
{[%clk 0:00:04.2]} 60. Bc8 {[%clk 0:00:14.8]} 60... Kg5 {[%clk 0:00:04.8]} 61.
Nh2 {[%clk 0:00:13.4]} 61... Kh4 {[%clk 0:00:05.5]} 62. Ng4 {[%clk 0:00:14.3]}
62... Nxg4 {[%clk 0:00:05.7]} 63. Bxg4 {[%clk 0:00:14]} 63... Kg5 {[%clk
0:00:06.3]} 64. Kd3 {[%clk 0:00:14.6]} 64... Kf6 {[%clk 0:00:07]} 65. Kc4 {[%clk
0:00:15.2]} 65... Ke5 {[%clk 0:00:07.6]} 66. Bf5 {[%clk 0:00:14.8]} 66... Be1
{[%clk 0:00:08.5]} 67. Bd7 {[%clk 0:00:14.8]} 67... Bc3 {[%clk 0:00:09.4]} 68.
Bc6 {[%clk 0:00:14.9]} 68... Be1 {[%clk 0:00:10.3]} 69. Bd5 {[%clk 0:00:15.3]}
69... Bc3 {[%clk 0:00:11.2]} 70. Kb5 {[%clk 0:00:14.1]} 70... Be1 {[%clk
0:00:12.1]} 71. Kxa5 {[%clk 0:00:14.6]} 71... Bc3 {[%clk 0:00:13]} 72. Kb5
{[%clk 0:00:14.9]} 72... Be1 {[%clk 0:00:13.9]} 73. Kc4 {[%clk 0:00:15.5]} 73...
Bd2 {[%clk 0:00:14.8]} 74. Bc6 {[%clk 0:00:15.7]} 74... Bc3 {[%clk 0:00:15.7]}
75. Kd3 {[%clk 0:00:16.3]} 75... Be1 {[%clk 0:00:16.6]} 76. Ke2 {[%clk
0:00:16.6]} 76... Bc3 {[%clk 0:00:17.5]} 77. Bb5 {[%clk 0:00:17.4]} 77... Kd4
{[%clk 0:00:17.3]} 78. Ba6 {[%clk 0:00:17]} 78... Ke5 {[%clk 0:00:18.2]} 79. Kd3
{[%clk 0:00:17.3]} 79... Be1 {[%clk 0:00:18]} 80. Kc4 {[%clk 0:00:17.5]} 80...
Bc3 {[%clk 0:00:18.3]} 81. Kc5 {[%clk 0:00:17.6]} 81... Be1 {[%clk 0:00:17.5]}
82. Bc4 {[%clk 0:00:18.5]} 82... Bc3 {[%clk 0:00:18.1]} 83. Bd5 {[%clk
0:00:19.1]} 83... Be1 {[%clk 0:00:18.8]} 84. Kc4 {[%clk 0:00:19.5]} 84... Bc3
{[%clk 0:00:19.5]} 85. Kd3 {[%clk 0:00:19.5]} 85... Be1 {[%clk 0:00:19.5]} 86.
Ke2 {[%clk 0:00:19.7]} 86... Bc3 {[%clk 0:00:19.9]} 87. Bc4 {[%clk 0:00:19.9]}
87... Kd4 {[%clk 0:00:20.2]} 88. Kf1 {[%clk 0:00:20.3]} 88... Ke5 {[%clk
0:00:21.1]} 89. Kg2 {[%clk 0:00:20.6]} 89... Kd4 {[%clk 0:00:22]} 90. Kh3 {[%clk
0:00:21.1]} 90... Ke5 {[%clk 0:00:22.9]} 91. Kg4 {[%clk 0:00:22]} 91... Be1
{[%clk 0:00:23.5]} 92. Bd3 {[%clk 0:00:22]} 92... Bc3 {[%clk 0:00:24.4]} 93. Bc4
{[%clk 0:00:22.9]} 93... Ba1 {[%clk 0:00:24.9]} 94. Kg5 {[%clk 0:00:23.8]} 94...
Bc3 {[%clk 0:00:25.8]} 95. Kg6 {[%clk 0:00:24.2]} 95... Bb2 {[%clk 0:00:26.7]}
96. Kf7 {[%clk 0:00:24.8]} 96... Ba1 {[%clk 0:00:27.6]} 97. Ke7 {[%clk
0:00:25.5]} 97... Bb2 {[%clk 0:00:28.5]} 98. Kd7 {[%clk 0:00:26.4]} 98... Bc3
{[%clk 0:00:29.4]} 99. Kc6 {[%clk 0:00:26.7]} 99... Bb2 {[%clk 0:00:30.3]} 100.
Kc5 {[%clk 0:00:27.6]} 100... Ba1 {[%clk 0:00:31.2]} 101. Bd3 {[%clk 0:00:28.5]}
101... Bc3 {[%clk 0:00:31.6]} 102. Kc4 {[%clk 0:00:29.4]} 102... Be1 {[%clk
0:00:31.8]} 103. Bc2 {[%clk 0:00:29.9]} 103... Bc3 {[%clk 0:00:30.4]} 104. Kd3
{[%clk 0:00:30.8]} 104... Be1 {[%clk 0:00:30.9]} 105. Ke2 {[%clk 0:00:31.5]}
105... Bc3 {[%clk 0:00:31.3]} 106. Bd3 {[%clk 0:00:32.1]} 106... Kd4 {[%clk
0:00:31]} 107. Bc4 {[%clk 0:00:33]} 107... Ke5 {[%clk 0:00:31]} 108. Bb5 {[%clk
0:00:32.4]} 108... Kd4 {[%clk 0:00:31.5]} 109. Bc6 {[%clk 0:00:32.1]} 109... Ke5
{[%clk 0:00:32.4]} 110. Bb7 {[%clk 0:00:32]} 110... Bd4 {[%clk 0:00:33.3]} 111.
Kd3 {[%clk 0:00:32.2]} 111... Bc3 {[%clk 0:00:34.2]} 112. Bc6 {[%clk 0:00:32.2]}
112... Bd4 {[%clk 0:00:32.4]} 113. Kc4 {[%clk 0:00:33.1]} 113... Bc3 {[%clk
0:00:33.3]} 114. Bb7 {[%clk 0:00:33]} 114... Be1 {[%clk 0:00:34.2]} 115. Kc5
{[%clk 0:00:32.5]} 115... Bc3 {[%clk 0:00:35.1]} 116. Kb5 {[%clk 0:00:33]}
116... Be1 {[%clk 0:00:36]} 117. Bd5 {[%clk 0:00:33.8]} 117... Bc3 {[%clk
0:00:36.9]} 118. Kc4 {[%clk 0:00:34.1]} 118... Be1 {[%clk 0:00:37.5]} 119. Bc6
{[%clk 0:00:35]} 119... Bc3 {[%clk 0:00:38]} 1/2-1/2

[Event "Early-Titled-Tuesday-Blitz-February-13-2024"]
[Site "Chess.com"]
[Date "2024.02.13"]
[Round "3"]
[White "NelsonLinda"]
[Black "Szparu"]
[Result "1/2-1/2"]
[WhiteElo "2571"]
[BlackElo "2795"]
[TimeControl "180+1"]
[EndTime "8:34:56 PST"]
[Termination "Game drawn by repetition"]

1. b3 {[%clk 0:03:00.4]} 1... d5 {[%clk 0:02:55.3]} 2. Bb2 {[%clk 0:03:00.4]}
2... c6 {[%clk 0:02:54.6]} 3. Nf3 {[%clk 0:02:58.3]} 3... Bg4 {[%clk 0:02:54]}
4. d3 {[%clk 0:02:48.5]} 4... Bxf3 {[%clk 0:02:48.2]} 5. exf3 {[%clk 0:02:49.4]}
5... Nf6 {[%clk 0:02:43.9]} 6. f4 {[%clk 0:02:48.8]} 6... g6 {[%clk 0:02:43.6]}
7. Nd2 {[%clk 0:02:41.8]} 7... Bg7 {[%clk 0:02:43.7]} 8. g3 {[%clk 0:02:41.4]}
8... O-O {[%clk 0:02:43.4]} 9. Bg2 {[%clk 0:02:41.8]} 9... c5 {[%clk 0:02:43.4]}
10. O-O {[%clk 0:02:41.5]} 10... Nc6 {[%clk 0:02:43.1]} 11. Re1 {[%clk 0:02:38]}
11... e6 {[%clk 0:02:42.9]} 12. Nf3 {[%clk 0:02:32.9]} 12... d4 {[%clk
0:02:30.4]} 13. Nd2 {[%clk 0:02:19.8]} 13... Nd5 {[%clk 0:02:30]} 14. a4 {[%clk
0:02:15.9]} 14... b6 {[%clk 0:02:29]} 15. h4 {[%clk 0:02:10]} 15... h5 {[%clk
0:02:28.3]} 16. Ne4 {[%clk 0:02:07.6]} 16... Nce7 {[%clk 0:02:23.2]} 17. Ng5
{[%clk 0:01:56.5]} 17... Qd7 {[%clk 0:02:13.6]} 18. Qd2 {[%clk 0:01:45.6]} 18...
Nf5 {[%clk 0:02:10.9]} 19. Nf3 {[%clk 0:01:22.2]} 19... a6 {[%clk 0:02:08.2]}
20. Ra3 {[%clk 0:01:17.3]} 20... b5 {[%clk 0:02:02.6]} 21. Rea1 {[%clk 0:01:17]}
21... b4 {[%clk 0:01:39.1]} 22. R3a2 {[%clk 0:01:16.2]} 22... Nc3 {[%clk
0:01:39.7]} 23. Bxc3 {[%clk 0:01:16.1]} 23... dxc3 {[%clk 0:01:29.3]} 24. Qe2
{[%clk 0:01:15.9]} 24... Rac8 {[%clk 0:01:23.1]} 25. Re1 {[%clk 0:01:13.2]}
25... Bd4 {[%clk 0:01:21.2]} 26. Kh2 {[%clk 0:01:08.4]} 26... a5 {[%clk
0:01:20.3]} 27. Raa1 {[%clk 0:01:05.6]} 27... Qc7 {[%clk 0:01:14]} 28. Bh3
{[%clk 0:01:04.4]} 28... Ne7 {[%clk 0:01:09.2]} 29. Qf1 {[%clk 0:00:56.6]} 29...
Bg7 {[%clk 0:01:07.8]} 30. Ng5 {[%clk 0:00:54.6]} 30... Nc6 {[%clk 0:01:00.2]}
31. Nf3 {[%clk 0:00:44.9]} 31... Rce8 {[%clk 0:00:59.5]} 32. Re4 {[%clk
0:00:42.9]} 32... Nd4 {[%clk 0:00:39.7]} 33. Nxd4 {[%clk 0:00:42.4]} 33... Bxd4
{[%clk 0:00:40.6]} 34. Rae1 {[%clk 0:00:42.3]} 34... Rd8 {[%clk 0:00:35.3]} 35.
Qe2 {[%clk 0:00:39.7]} 35... Kg7 {[%clk 0:00:35.3]} 36. Qf3 {[%clk 0:00:34.5]}
36... Rd5 {[%clk 0:00:31]} 37. Bg2 {[%clk 0:00:30.4]} 37... Rd6 {[%clk
0:00:29.5]} 38. R4e2 {[%clk 0:00:30]} 38... Qd8 {[%clk 0:00:26.6]} 39. Qb7
{[%clk 0:00:28.8]} 39... Re8 {[%clk 0:00:26.4]} 40. Qf3 {[%clk 0:00:24.6]} 40...
Re7 {[%clk 0:00:25.7]} 41. Kg1 {[%clk 0:00:23]} 41... Qc7 {[%clk 0:00:24.1]} 42.
Qa8 {[%clk 0:00:22]} 42... Rd8 {[%clk 0:00:23.6]} 43. Qc6 {[%clk 0:00:21.8]}
43... Qb8 {[%clk 0:00:22.6]} 44. Qf3 {[%clk 0:00:21.4]} 44... Rde8 {[%clk
0:00:22.1]} 45. Kf1 {[%clk 0:00:21.1]} 45... Qc8 {[%clk 0:00:17.7]} 46. Qc6
{[%clk 0:00:20.5]} 46... Qd8 {[%clk 0:00:16]} 47. Qf3 {[%clk 0:00:19.3]} 47...
Qc7 {[%clk 0:00:11.5]} 48. Qc6 {[%clk 0:00:19.3]} 48... Qxc6 {[%clk 0:00:11.2]}
49. Bxc6 {[%clk 0:00:19.1]} 49... Rd8 {[%clk 0:00:11.8]} 50. Bg2 {[%clk
0:00:18.7]} 50... Rd6 {[%clk 0:00:11.8]} 51. Ba8 {[%clk 0:00:17.6]} 51... Kf6
{[%clk 0:00:11.5]} 52. Be4 {[%clk 0:00:17.2]} 52... Rd8 {[%clk 0:00:11.5]} 53.
Bf3 {[%clk 0:00:17]} 53... e5 {[%clk 0:00:09.3]} 54. Bc6 {[%clk 0:00:15.1]}
54... Rd6 {[%clk 0:00:08.1]} 55. Bb5 {[%clk 0:00:14.5]} 55... Rb6 {[%clk
0:00:03.7]} 56. Bc4 {[%clk 0:00:14.4]} 56... Rbb7 {[%clk 0:00:04.2]} 57. fxe5+
{[%clk 0:00:14.8]} 57... Rxe5 {[%clk 0:00:04.5]} 58. Rxe5 {[%clk 0:00:14.7]}
58... Bxe5 {[%clk 0:00:05.4]} 59. Kg2 {[%clk 0:00:14.9]} 59... Rd7 {[%clk
0:00:04.9]} 60. Re3 {[%clk 0:00:14.2]} 60... Bc7 {[%clk 0:00:02.8]} 61. Rf3+
{[%clk 0:00:13.8]} 61... Kg7 {[%clk 0:00:03.1]} 62. Re3 {[%clk 0:00:14.4]} 62...
Bd8 {[%clk 0:00:02.6]} 63. Re8 {[%clk 0:00:14.1]} 63... Bc7 {[%clk 0:00:01.5]}
64. Rc8 {[%clk 0:00:13.6]} 64... Re7 {[%clk 0:00:02]} 65. Kf1 {[%clk 0:00:12.6]}
65... Bd6 {[%clk 0:00:02.4]} 66. Rc6 {[%clk 0:00:12.5]} 66... Rd7 {[%clk
0:00:02.3]} 67. Bb5 {[%clk 0:00:11.8]} 67... Rd8 {[%clk 0:00:02.4]} 68. Ra6
{[%clk 0:00:12]} 68... Bc7 {[%clk 0:00:03]} 69. Ra7 {[%clk 0:00:12.5]} 69... Bd6
{[%clk 0:00:03.4]} 70. Rxa5 {[%clk 0:00:12.1]} 70... Rc8 {[%clk 0:00:02.4]} 71.
Bc4 {[%clk 0:00:11.9]} 71... Rc7 {[%clk 0:00:02.5]} 72. Ra6 {[%clk 0:00:12.3]}
72... Be7 {[%clk 0:00:03]} 73. Rb6 {[%clk 0:00:12.2]} 73... g5 {[%clk
0:00:03.2]} 74. hxg5 {[%clk 0:00:12.1]} 74... Bxg5 {[%clk 0:00:04.1]} 75. a5
{[%clk 0:00:09.7]} 75... Bd8 {[%clk 0:00:03.9]} 76. a6 {[%clk 0:00:08.6]} 76...
Ra7 {[%clk 0:00:04.1]} 77. Rb8 {[%clk 0:00:07.7]} 77... Be7 {[%clk 0:00:04.3]}
78. Rc8 {[%clk 0:00:05.2]} 78... Kf6 {[%clk 0:00:03.9]} 79. Rc6+ {[%clk
0:00:05.3]} 79... Kg7 {[%clk 0:00:04.2]} 80. Kg2 {[%clk 0:00:05.3]} 80... Kf8
{[%clk 0:00:02.9]} 81. Rh6 {[%clk 0:00:04.6]} 81... h4 {[%clk 0:00:02.7]} 82.
gxh4 {[%clk 0:00:05]} 82... Kg7 {[%clk 0:00:03.3]} 83. Rh5 {[%clk 0:00:05.1]}
83... Kg6 {[%clk 0:00:03.1]} 84. Re5 {[%clk 0:00:05.2]} 84... Bxh4 {[%clk
0:00:03]} 85. Rxc5 {[%clk 0:00:05.3]} 85... Be7 {[%clk 0:00:03.7]} 86. Rb5
{[%clk 0:00:03.8]} 86... f5 {[%clk 0:00:03.6]} 87. Rb7 {[%clk 0:00:03.5]} 87...
Bc5 {[%clk 0:00:03.7]} 88. Rxa7 {[%clk 0:00:03.4]} 88... Bxa7 {[%clk 0:00:04.1]}
89. Kf3 {[%clk 0:00:03.6]} 89... Kg5 {[%clk 0:00:04.6]} 90. Bd5 {[%clk
0:00:03.8]} 90... Bd4 {[%clk 0:00:04.8]} 91. Kg3 {[%clk 0:00:03.7]} 91... Be5+
{[%clk 0:00:02.4]} 92. Kf3 {[%clk 0:00:02.3]} 92... Bd4 {[%clk 0:00:02.9]} 93.
Bb7 {[%clk 0:00:02.8]} 93... Ba7 {[%clk 0:00:03.1]} 94. Ke2 {[%clk 0:00:02.8]}
94... Kf4 {[%clk 0:00:03]} 95. Kf1 {[%clk 0:00:01.8]} 95... Ke5 {[%clk
0:00:02.8]} 96. Kg2 {[%clk 0:00:02.1]} 96... Kf4 {[%clk 0:00:03.4]} 97. Kg1
{[%clk 0:00:01.5]} 97... Ke5 {[%clk 0:00:03.1]} 98. Kf1 {[%clk 0:00:02.2]} 98...
Kf4 {[%clk 0:00:03.5]} 99. Ke2 {[%clk 0:00:02.5]} 99... Ke5 {[%clk 0:00:04]}
100. Kd1 {[%clk 0:00:03.1]} 100... Bxf2 {[%clk 0:00:03.5]} 101. Ke2 {[%clk
0:00:03.8]} 101... Ba7 {[%clk 0:00:03.4]} 102. Kf3 {[%clk 0:00:04.7]} 102... Kf6
{[%clk 0:00:03]} 103. Bc8 {[%clk 0:00:04.9]} 103... Ke5 {[%clk 0:00:02.9]} 104.
Bb7 {[%clk 0:00:05.3]} 104... Kf6 {[%clk 0:00:03.3]} 105. Bc8 {[%clk 0:00:05.9]}
105... Ke5 {[%clk 0:00:03.8]} 106. Bb7 {[%clk 0:00:06.5]} 1/2-1/2